fUSD/lending_fUSD_20250215
["ID","MTS","AMOUNT","RATE_DAILY","PERIOD"]
[353148762,1739611881614,-180.07251514,0.00011863,2]
[353148763,1739611881624,-500.0,0.00011863,2]
[353148764,1739611881635,-500.0,0.00011863,2]
[353148765,1739611881644,-500.0,0.00011863,2]
[353148766,1739611881654,-575.78,0.00011863,2]
[353148767,1739611881663,-615.98,0.00011863,2]
[353148768,1739611881672,-500.0,0.00011863,2]
[353148769,1739611881683,-500.0,0.00011863,2]
[353148770,1739611881692,-500.0,0.00011863,2]
[353148771,1739611881701,-500.0,0.00011863,2]
[353148772,1739611881711,-691.81,0.00011863,2]
[353148773,1739611881721,-500.0,0.00011863,2]
[353148774,1739611881730,-778.06,0.00011863,2]
[353148775,1739611881740,-648.19,0.00011863,2]
[353148776,1739611881751,-536.79,0.00011863,2]
[353148777,1739611881762,-638.9,0.00011863,2]
[353148778,1739611881772,-500.0,0.00011863,2]
[353148779,1739611881782,-1073.44,0.00011863,2]
[353148780,1739611881792,-676.69,0.00011863,2]
[353148781,1739611881803,-500.0,0.00011863,2]
[353148782,1739611881813,-568.45,0.00011863,2]
[353148783,1739611881822,-1057.92,0.00011863,2]
[353148784,1739611881832,-500.0,0.00011863,2]
[353148785,1739611881842,-500.0,0.00011863,2]
[353148786,1739611881852,-1086.69,0.00011863,2]
[353148787,1739611881862,-829.19,0.00011863,2]
[353148788,1739611881872,-500.0,0.00011863,2]
[353148789,1739611881881,-793.24,0.00011863,2]
[353148790,1739611881891,-500.0,0.00011863,2]
[353148791,1739611881901,-615.24,0.00011863,2]
[353148792,1739611881910,-783.17,0.00011863,2]
[353148793,1739611881920,-991.47,0.00011863,2]
[353148794,1739611881930,-1433.75,0.00011863,2]
[353148795,1739611881940,-971.58,0.00011863,2]
[353148796,1739611881950,-789.55,0.00011863,2]
[353148797,1739611881961,-552.21,0.00011863,2]
[353148798,1739611881970,-500.0,0.00011863,2]
[353148799,1739611881980,-1175.04,0.00011863,2]
[353148800,1739611881991,-500.0,0.00011863,2]
[353148801,1739611882002,-731.56,0.00011863,2]
[353148802,1739611882013,-500.0,0.00011863,2]
[353148803,1739611882023,-2056.44,0.00011863,2]
[353148804,1739611882033,-529.5,0.00011863,2]
[353148805,1739611882043,-703.41,0.00011863,2]
[353148806,1739611882052,-500.0,0.00011863,2]
[353148807,1739611882063,-895.05,0.00011863,2]
[353148808,1739611882073,-717.51,0.00011863,2]
[353148809,1739611882083,-610.86,0.00011863,2]
[353148810,1739611882093,-1754.36,0.00011863,2]
[353148811,1739611882104,-743.87,0.00011863,2]
[353148812,1739611882113,-1009.67,0.00011863,2]
[353148813,1739611882124,-2982.91,0.00011863,2]
[353148814,1739611882133,-995.96,0.00011863,2]
[353148815,1739611882143,-1159.35,0.00011863,2]
[353148816,1739611882153,-581.33,0.00011863,2]
[353148817,1739611882163,-779.91,0.00011863,2]
[353148818,1739611882173,-735.73,0.00011863,2]
[353148819,1739611882183,-1222.91,0.00011863,2]
[353148820,1739611882193,-1141.54,0.00011863,2]
[353148821,1739611882203,-657.56,0.00011863,2]
[353148822,1739611882213,-921.4,0.00011863,2]
[353148823,1739611882223,-802.93,0.00011863,2]
[353148824,1739611882232,-560.26,0.00011863,2]
[353148825,1739611882242,-646.72,0.00011863,2]
[353148826,1739611882252,-1756.73,0.00011863,2]
[353148827,1739611882263,-2263.15,0.00011863,2]
[353148828,1739611882272,-630.63,0.00011863,2]
[353148829,1739611882282,-645.55,0.00011863,2]
[353148830,1739611882291,-500.0,0.00011863,2]
[353148831,1739611882301,-904.92,0.00011863,2]
[353148832,1739611882311,-864.22,0.00011863,2]
[353148833,1739611882321,-500.0,0.00011863,2]
[353148834,1739611882331,-830.74,0.00011863,2]
[353148835,1739611882342,-769.25,0.00011863,2]
[353148836,1739611882351,-897.43,0.00011863,2]
[353148837,1739611882361,-1011.81,0.00011863,2]
[353148838,1739611882370,-500.0,0.00011863,2]
[353148839,1739611882379,-1292.79,0.00011863,2]
[353148840,1739611882388,-500.0,0.00011863,2]
[353148841,1739611882398,-500.0,0.00011863,2]
[353148842,1739611882407,-1639.04,0.00011863,2]
[353148843,1739611882416,-484.60270549,0.00011863,2]
[353148844,1739611882425,-695.46,0.00011863,2]
[353148845,1739611882435,-746.86,0.00011863,2]
[353148846,1739611882444,-850.54,0.00011863,2]
[353148847,1739611882454,-734.88,0.00011863,2]
[353148848,1739611882463,-1135.06,0.00011863,2]
[353148849,1739611882473,-834.87,0.00011863,2]
[353148850,1739611882483,-500.0,0.00011863,2]
[353148851,1739611882492,-505.21,0.00011863,2]
[353148852,1739611882501,-500.0,0.00011863,2]
[353148853,1739611882512,-622.66,0.00011863,2]
[353148854,1739611882522,-824.06,0.00011863,2]
[353148855,1739611882531,-452.36048078,0.00011863,2]
[353148856,1739611882540,-500.0,0.00011863,2]
[353148857,1739611882549,-1491.64,0.00011863,2]
[353148858,1739611882558,-500.0,0.00011863,2]
[353148859,1739611882568,-587.54,0.00011863,2]
[353148860,1739611882578,-510.9,0.00011863,2]
[353148861,1739611882588,-500.0,0.00011863,2]
[353148862,1739611882600,-1098.7,0.00011863,2]
[353148863,1739611882610,-179.0210682,0.00011863,2]
[353148864,1739611882620,-879.19,0.00011863,2]
[353148865,1739611882630,-697.57,0.00011863,2]
[353148866,1739611882640,-845.88,0.00011863,2]
[353148867,1739611882650,-500.0,0.00011863,2]
[353148868,1739611882660,-500.0,0.00011863,2]
[353148869,1739611882671,-500.0,0.00011863,2]
[353148870,1739611882682,-927.84,0.00011863,2]
[353148871,1739611882692,-1000.0,0.00011863,2]
[353148872,1739611882701,-500.0,0.00011863,2]
[353148873,1739611882711,-910.15,0.00011863,2]
[353148874,1739611882721,-1188.23,0.00011863,2]
[353148875,1739611882731,-677.74,0.00011863,2]
[353148876,1739611882741,-500.0,0.00011863,2]
[353148877,1739611882751,-500.0,0.00011863,2]
[353148878,1739611882762,-1676.44,0.00011863,2]
[353148879,1739611882772,-964.59,0.00011863,2]
[353148880,1739611882781,-1174.04,0.00011863,2]
[353148881,1739611882791,-500.0,0.00011863,2]
[353148882,1739611882801,-728.47,0.00011863,2]
[353148883,1739611882811,-703.23,0.00011863,2]
[353148884,1739611882821,-500.0,0.00011863,2]
[353148885,1739611882832,-1086.08,0.00011863,2]
[353148886,1739611882841,-500.0,0.00011863,2]
[353148887,1739611882851,-500.0,0.00011863,2]
[353148888,1739611882861,-500.0,0.00011863,2]
[353148889,1739611882871,-748.0,0.00011863,2]
[353148890,1739611882880,-957.02,0.00011863,2]
[353148891,1739611882891,-1604.66,0.00011863,2]
[353148892,1739611882900,-704.0,0.00011863,2]
[353148893,1739611882910,-623.33,0.00011863,2]
[353148894,1739611882921,-2157.01,0.00011863,2]
[353148895,1739611882931,-700.0,0.0001187,2]
[353148896,1739611882941,-2003.0,0.000119,3]
[353148897,1739611882952,-3100.0,0.000119,4]
[353148898,1739611882963,-1974.60764025,0.000119,2]
[353148899,1739611882973,-1974.60764014,0.000119,2]
[353148900,1739611882984,-1974.60764014,0.000119,2]
[353148901,1739611882994,-1974.60764014,0.000119,2]
[353148902,1739611883004,-1974.60764014,0.000119,2]
[353148903,1739611883016,-1974.60764014,0.000119,2]
[353148904,1739611883026,-1974.60764014,0.000119,2]
[353148905,1739611883037,-1974.60764014,0.000119,2]
[353148906,1739611883048,-1974.60764014,0.000119,2]
[353148907,1739611883057,-1974.60764014,0.000119,2]
[353148908,1739611883067,-4343.8580397,0.000119,2]
[353148909,1739611883077,-1974.60764014,0.000119,2]
[353148910,1739611883088,-1974.60764014,0.000119,2]
[353148911,1739611883097,-37350.08411677,0.000119,2]
[353148912,1739611883108,-240.06745166,0.000119,2]
[353148913,1739611883118,-1974.60764014,0.000119,2]
[353148914,1739611883128,-1974.60764014,0.000119,2]
[353148915,1739611883138,-1974.60764014,0.000119,2]
[353148916,1739611883155,-1974.60764014,0.000119,2]
[353148917,1739611883165,-229.8843768,0.000119,2]
[353148918,1739611883175,-1974.60764014,0.000119,2]
[353148919,1739611883187,-1974.60764014,0.000119,2]
[353148920,1739611883197,-1974.60764014,0.000119,2]
[353148921,1739611883207,-1974.60764014,0.000119,2]
[353148922,1739611883218,-379.0253644,0.000119,2]
[353148923,1739611883228,-2507.8150113,0.00011936,2]
[353148924,1739611883238,-1720.7618371,0.00011937,2]
[353148925,1739611883248,-4450.3667636,0.00011937,2]
[353148926,1739611883259,-1076.8903942,0.00011937,2]
[353148927,1739611883269,-1356.16,0.00011943,2]
[353148928,1739611883279,-2082.15,0.00011944,2]
[353148929,1739611883288,-500.0,0.00011944,2]
[353148930,1739611883298,-1000.0,0.00011944,2]
[353148931,1739611883308,-1000.0,0.00011944,2]
[353148932,1739611883317,-1000.0,0.00011944,2]
[353148933,1739611883327,-1000.0,0.00011944,2]
[353148934,1739611883337,-1000.0,0.00011944,2]
[353148935,1739611883346,-1000.0,0.00011944,2]
[353148936,1739611883356,-1000.0,0.00011944,2]
[353148937,1739611883366,-1000.0,0.00011944,2]
[353148938,1739611883376,-1000.0,0.00011944,2]
[353148939,1739611883386,-1002.26252669,0.00011944,2]
[353148940,1739611883396,-872.98,0.00011944,2]
[353148941,1739611883406,-725.47,0.00011944,2]
[353148942,1739611883415,-1000.0,0.00011944,2]
[353148943,1739611883426,-1000.0,0.00011944,2]
[353148944,1739611883436,-1000.0,0.00011944,2]
[353148945,1739611883446,-1000.0,0.00011944,2]
[353148946,1739611883456,-1000.0,0.00011944,2]
[353148947,1739611883466,-1000.0,0.00011944,2]
[353148948,1739611883476,-1000.0,0.00011944,2]
[353148949,1739611883486,-1000.0,0.00011944,2]
[353148950,1739611883496,-1000.0,0.00011944,2]
[353148951,1739611883506,-1000.0,0.00011944,2]
[353148952,1739611883517,-1506.85,0.00011944,2]
[353148953,1739611883527,-533.638194,0.00011945,2]
[353148954,1739611883536,-569.681091,0.00011945,2]
[353148955,1739611883546,-500.0,0.00011945,2]
[353148956,1739611883556,-500.0,0.00011945,2]
[353148957,1739611883565,-500.0,0.00011945,2]
[353148958,1739611883576,-613.23692178,0.00011945,2]
[353148959,1739611883587,-500.0,0.00011945,2]
[353148960,1739611883603,-661.16,0.00011945,2]
[353148961,1739611883613,-602.88,0.00011945,2]
[353148962,1739611883623,-500.0,0.00011945,2]
[353148963,1739611883632,-405.6877222,0.00011945,2]
[353148964,1739611883643,-602.21,0.00011945,2]
[353148965,1739611883653,-500.0,0.00011945,2]
[353148966,1739611883663,-559.76,0.00011945,2]
[353148967,1739611883817,-500.0,0.00011945,2]
[353148968,1739611883842,-500.0,0.00011945,2]
[353148969,1739611883852,-500.0,0.00011945,2]
[353148970,1739611883861,-500.0,0.00011945,2]
[353148971,1739611883871,-500.0,0.00011945,2]
[353148972,1739611883880,-500.0,0.00011945,2]
[353148973,1739611883889,-642.55,0.00011945,2]
[353148974,1739611883899,-500.0,0.00011945,2]
[353148975,1739611883908,-500.0,0.00011945,2]
[353148976,1739611883917,-500.0,0.00011945,2]
[353148977,1739611883927,-509.2,0.00011945,2]
[353148978,1739611883936,-583.23,0.00011945,2]
[353148979,1739611883946,-588.51,0.00011945,2]
[353148980,1739611883955,-500.0,0.00011945,2]
[353148981,1739611883965,-644.33921779,0.00011945,2]
[353148982,1739611883974,-500.0,0.00011945,2]
[353148983,1739611883983,-666.54,0.00011945,2]
[353148984,1739611883993,-500.0,0.00011945,2]
[353148985,1739611884002,-500.0,0.00011945,2]
[353148986,1739611884012,-553.58,0.00011945,2]
[353148987,1739611884022,-656.03,0.00011945,2]
[353148988,1739611884032,-500.0,0.00011945,2]
[353148989,1739611884041,-500.0,0.00011945,2]
[353148990,1739611884050,-569.62,0.00011945,2]
[353148991,1739611884059,-500.0,0.00011945,2]
[353148992,1739611884069,-500.0,0.00011945,2]
[353148993,1739611884078,-500.0,0.00011945,2]
[353148994,1739611884087,-628.27,0.00011945,2]
[353148995,1739611884097,-619.35,0.00011945,2]
[353148996,1739611884106,-572.09,0.00011945,2]
[353148997,1739611884115,-682.02,0.00011945,2]
[353148998,1739611884124,-500.0,0.00011945,2]
[353148999,1739611884133,-812.88,0.00011945,2]
[353149000,1739611884142,-500.0,0.00011945,2]
[353149001,1739611884152,-500.0,0.00011945,2]
[353149002,1739611884161,-672.16,0.00011945,2]
[353149003,1739611884171,-500.0,0.00011945,2]
[353149004,1739611884180,-500.0,0.00011945,2]
[353149005,1739611884190,-500.0,0.00011945,2]
[353149006,1739611884201,-575.78,0.00011945,2]
[353149007,1739611884210,-615.98,0.00011945,2]
[353149008,1739611884221,-500.0,0.00011945,2]
[353149009,1739611884230,-500.0,0.00011945,2]
[353149010,1739611884239,-500.0,0.00011945,2]
[353149011,1739611884249,-500.0,0.00011945,2]
[353149012,1739611884259,-691.81,0.00011945,2]
[353149013,1739611884268,-500.0,0.00011945,2]
[353149014,1739611884277,-778.06,0.00011945,2]
[353149015,1739611884286,-648.19,0.00011945,2]
[353149016,1739611884296,-536.79,0.00011945,2]
[353149017,1739611884306,-638.9,0.00011945,2]
[353149018,1739611884315,-500.0,0.00011945,2]
[353149019,1739611884325,-1073.44,0.00011945,2]
[353149020,1739611884334,-676.69,0.00011945,2]
[353149021,1739611884344,-500.0,0.00011945,2]
[353149022,1739611884353,-568.45,0.00011945,2]
[353149023,1739611884363,-1057.92,0.00011945,2]
[353149024,1739611884372,-562.01966644,0.00011945,2]
[353149025,1739611884381,-500.0,0.00011945,2]
[353149026,1739611884391,-1086.69,0.00011945,2]
[353149027,1739611884400,-829.19,0.00011945,2]
[353149028,1739611884409,-500.0,0.00011945,2]
[353149029,1739611884419,-793.24,0.00011945,2]
[353149030,1739611884428,-500.0,0.00011945,2]
[353149031,1739611884437,-615.24,0.00011945,2]
[353149032,1739611884446,-783.17,0.00011945,2]
[353149033,1739611884456,-991.47,0.00011945,2]
[353149034,1739611884464,-1433.75,0.00011945,2]
[353149035,1739611884473,-971.58,0.00011945,2]
[353149036,1739611884483,-789.55,0.00011945,2]
[353149037,1739611884492,-552.21,0.00011945,2]
[353149038,1739611884501,-500.0,0.00011945,2]
[353149039,1739611884510,-1175.04,0.00011945,2]
[353149040,1739611884520,-500.0,0.00011945,2]
[353149041,1739611884529,-731.56,0.00011945,2]
[353149042,1739611884540,-500.0,0.00011945,2]
[353149043,1739611884551,-2056.44,0.00011945,2]
[353149044,1739611884561,-529.5,0.00011945,2]
[353149045,1739611884571,-703.41,0.00011945,2]
[353149046,1739611884582,-895.05,0.00011945,2]
[353149047,1739611884593,-717.51,0.00011945,2]
[353149048,1739611884607,-610.86,0.00011945,2]
[353149049,1739611884617,-1754.36,0.00011945,2]
[353149050,1739611884626,-743.87,0.00011945,2]
[353149051,1739611884638,-1009.67,0.00011945,2]
[353149052,1739611884648,-2982.91,0.00011945,2]
[353149053,1739611884658,-995.96,0.00011945,2]
[353149054,1739611884668,-1159.35,0.00011945,2]
[353149055,1739611884677,-581.33,0.00011945,2]
[353149056,1739611884688,-779.91,0.00011945,2]
[353149057,1739611884698,-735.73,0.00011945,2]
[353149058,1739611884707,-1222.91,0.00011945,2]
[353149059,1739611884717,-1141.54,0.00011945,2]
[353149060,1739611884726,-657.56,0.00011945,2]
[353149061,1739611884736,-921.4,0.00011945,2]
[353149062,1739611884746,-802.93,0.00011945,2]
[353149063,1739611884755,-560.26,0.00011945,2]
[353149064,1739611884765,-646.72,0.00011945,2]
[353149065,1739611884774,-1756.73,0.00011945,2]
[353149066,1739611884784,-2263.15,0.00011945,2]
[353149067,1739611884793,-630.63,0.00011945,2]
[353149068,1739611884803,-645.55,0.00011945,2]
[353149069,1739611884812,-500.0,0.00011945,2]
[353149070,1739611884821,-904.92,0.00011945,2]
[353149071,1739611884831,-864.22,0.00011945,2]
[353149072,1739611884840,-500.0,0.00011945,2]
[353149073,1739611884850,-830.74,0.00011945,2]
[353149074,1739611884859,-769.25,0.00011945,2]
[353149075,1739611884868,-897.43,0.00011945,2]
[353149076,1739611884877,-1011.81,0.00011945,2]
[353149077,1739611884887,-500.0,0.00011945,2]
[353149078,1739611884896,-1292.79,0.00011945,2]
[353149079,1739611884905,-500.0,0.00011945,2]
[353149080,1739611884915,-500.0,0.00011945,2]
[353149081,1739611884924,-1639.04,0.00011945,2]
[353149082,1739611884933,-695.46,0.00011945,2]
[353149083,1739611884942,-746.86,0.00011945,2]
[353149084,1739611884951,-850.54,0.00011945,2]
[353149085,1739611884961,-734.88,0.00011945,2]
[353149086,1739611884970,-1135.06,0.00011945,2]
[353149087,1739611884979,-834.87,0.00011945,2]
[353149088,1739611884988,-500.0,0.00011945,2]
[353149089,1739611884997,-505.21,0.00011945,2]
[353149090,1739611885006,-182.62722698,0.00011945,2]
[353149091,1739611885017,-622.66,0.00011945,2]
[353149092,1739611885026,-824.06,0.00011945,2]
[353149093,1739611885036,-500.0,0.00011945,2]
[353149094,1739611885045,-1491.64,0.00011945,2]
[353149095,1739611885055,-500.0,0.00011945,2]
[353149096,1739611885065,-587.54,0.00011945,2]
[353149097,1739611885075,-510.9,0.00011945,2]
[353149098,1739611885084,-500.0,0.00011945,2]
[353149099,1739611885094,-1098.7,0.00011945,2]
[353149100,1739611885104,-879.19,0.00011945,2]
[353149101,1739611885114,-697.57,0.00011945,2]
[353149102,1739611885124,-845.88,0.00011945,2]
[353149103,1739611885134,-500.0,0.00011945,2]
[353149104,1739611885143,-500.0,0.00011945,2]
[353149105,1739611885153,-500.0,0.00011945,2]
[353149106,1739611885163,-927.84,0.00011945,2]
[353149107,1739611885172,-1000.0,0.00011945,2]
[353149108,1739611885182,-500.0,0.00011945,2]
[353149109,1739611885191,-910.15,0.00011945,2]
[353149110,1739611885201,-1188.23,0.00011945,2]
[353149111,1739611885210,-677.74,0.00011945,2]
[353149112,1739611885219,-500.0,0.00011945,2]
[353149113,1739611885230,-500.0,0.00011945,2]
[353149114,1739611885240,-1676.44,0.00011945,2]
[353149115,1739611885249,-964.59,0.00011945,2]
[353149116,1739611885261,-1174.04,0.00011945,2]
[353149117,1739611885270,-500.0,0.00011945,2]
[353149118,1739611885280,-728.47,0.00011945,2]
[353149119,1739611885289,-703.23,0.00011945,2]
[353149120,1739611885299,-500.0,0.00011945,2]
[353149121,1739611885308,-1086.08,0.00011945,2]
[353149122,1739611885317,-500.0,0.00011945,2]
[353149123,1739611885326,-500.0,0.00011945,2]
[353149124,1739611885336,-500.0,0.00011945,2]
[353149125,1739611885346,-748.0,0.00011945,2]
[353149126,1739611885355,-957.02,0.00011945,2]
[353149127,1739611885365,-1604.66,0.00011945,2]
[353149128,1739611885374,-704.0,0.00011945,2]
[353149129,1739611885383,-623.33,0.00011945,2]
[353149130,1739611885393,-2157.01,0.00011945,2]
[353149131,1739611885402,-100000.0,0.00012,2]
[353149132,1739611885411,-2303.4,0.00012,3]
[353149133,1739611885420,-280.0,0.00012,2]
[353149134,1739611885430,-4951.2340632,0.00012,7]
[353149135,1739611885439,-30151.48224858,0.00012009,2]
[353149136,1739611885448,-355.96040507,0.0001201,2]
[353149137,1739611885457,-2082.15,0.00012026,2]
[353149138,1739611885467,-1356.16,0.00012026,2]
[353149139,1739611885476,-872.98,0.00012026,2]
[353149140,1739611885485,-725.47,0.00012026,2]
[353149141,1739611885495,-1506.85,0.00012026,2]
[353149142,1739611885504,-533.638194,0.00012027,2]
[353149143,1739611885514,-569.681091,0.00012027,2]
[353149144,1739611885524,-500.0,0.00012027,2]
[353149145,1739611885534,-500.0,0.00012027,2]
[353149146,1739611885543,-274.88800366,0.00012027,2]
[353149147,1739611885552,-500.0,0.00012027,2]
[353149148,1739611885561,-661.16,0.00012027,2]
[353149149,1739611885570,-602.88,0.00012027,2]
[353149150,1739611885579,-500.0,0.00012027,2]
[353149151,1739611885588,-602.21,0.00012027,2]
[353149152,1739611885597,-500.0,0.00012027,2]
[353149153,1739611885610,-559.76,0.00012027,2]
[353149154,1739611885619,-500.0,0.00012027,2]
[353149155,1739611885628,-500.0,0.00012027,2]
[353149156,1739611885638,-500.0,0.00012027,2]
[353149157,1739611885647,-500.0,0.00012027,2]
[353149158,1739611885657,-500.0,0.00012027,2]
[353149159,1739611885666,-500.0,0.00012027,2]
[353149160,1739611885676,-642.55,0.00012027,2]
[353149161,1739611885685,-500.0,0.00012027,2]
[353149162,1739611885695,-500.0,0.00012027,2]
[353149163,1739611885704,-500.0,0.00012027,2]
[353149164,1739611885713,-509.2,0.00012027,2]
[353149165,1739611885723,-583.23,0.00012027,2]
[353149166,1739611885732,-588.51,0.00012027,2]
[353149167,1739611885742,-202.27320172,0.00012027,2]
[353149168,1739611885752,-500.0,0.00012027,2]
[353149169,1739611885762,-666.54,0.00012027,2]
[353149170,1739611885772,-441.23400989,0.00012027,2]
[353149171,1739611885782,-500.0,0.00012027,2]
[353149172,1739611885791,-553.58,0.00012027,2]
[353149173,1739611885800,-656.03,0.00012027,2]
[353149174,1739611885810,-500.0,0.00012027,2]
[353149175,1739611885820,-500.0,0.00012027,2]
[353149176,1739611885829,-569.62,0.00012027,2]
[353149177,1739611885838,-500.0,0.00012027,2]
[353149178,1739611885847,-500.0,0.00012027,2]
[353149179,1739611885856,-500.0,0.00012027,2]
[353149180,1739611885865,-628.27,0.00012027,2]
[353149181,1739611885875,-619.35,0.00012027,2]
[353149182,1739611885885,-572.09,0.00012027,2]
[353149183,1739611885894,-682.02,0.00012027,2]
[353149184,1739611885903,-500.0,0.00012027,2]
[353149185,1739611885912,-812.88,0.00012027,2]
[353149186,1739611885922,-500.0,0.00012027,2]
[353149187,1739611885931,-500.0,0.00012027,2]
[353149188,1739611885940,-672.16,0.00012027,2]
[353149189,1739611885949,-500.0,0.00012027,2]
[353149190,1739611885958,-500.0,0.00012027,2]
[353149191,1739611885967,-500.0,0.00012027,2]
[353149192,1739611885976,-575.78,0.00012027,2]
[353149193,1739611885985,-615.98,0.00012027,2]
[353149194,1739611885994,-500.0,0.00012027,2]
[353149195,1739611886004,-500.0,0.00012027,2]
[353149196,1739611886013,-500.0,0.00012027,2]
[353149197,1739611886022,-500.0,0.00012027,2]
[353149198,1739611886032,-691.81,0.00012027,2]
[353149199,1739611886041,-500.0,0.00012027,2]
[353149200,1739611886050,-778.06,0.00012027,2]
[353149201,1739611886059,-648.19,0.00012027,2]
[353149202,1739611886069,-536.79,0.00012027,2]
[353149203,1739611886078,-638.9,0.00012027,2]
[353149204,1739611886087,-500.0,0.00012027,2]
[353149205,1739611886096,-1073.44,0.00012027,2]
[353149206,1739611886105,-676.69,0.00012027,2]
[353149207,1739611886114,-500.0,0.00012027,2]
[353149208,1739611886123,-568.45,0.00012027,2]
[353149209,1739611886132,-1057.92,0.00012027,2]
[353149210,1739611886142,-500.0,0.00012027,2]
[353149211,1739611886151,-1086.69,0.00012027,2]
[353149212,1739611886160,-829.19,0.00012027,2]
[353149213,1739611886169,-500.0,0.00012027,2]
[353149214,1739611886178,-793.24,0.00012027,2]
[353149215,1739611886187,-500.0,0.00012027,2]
[353149216,1739611886197,-615.24,0.00012027,2]
[353149217,1739611886206,-783.17,0.00012027,2]
[353149218,1739611886216,-991.47,0.00012027,2]
[353149219,1739611886225,-1433.75,0.00012027,2]
[353149220,1739611886235,-971.58,0.00012027,2]
[353149221,1739611886244,-789.55,0.00012027,2]
[353149222,1739611886253,-552.21,0.00012027,2]
[353149223,1739611886263,-500.0,0.00012027,2]
[353149224,1739611886272,-1175.04,0.00012027,2]
[353149225,1739611886281,-500.0,0.00012027,2]
[353149226,1739611886291,-731.56,0.00012027,2]
[353149227,1739611886300,-500.0,0.00012027,2]
[353149228,1739611886309,-2056.44,0.00012027,2]
[353149229,1739611886318,-529.5,0.00012027,2]
[353149230,1739611886327,-703.41,0.00012027,2]
[353149231,1739611886336,-895.05,0.00012027,2]
[353149232,1739611886345,-717.51,0.00012027,2]
[353149233,1739611886354,-610.86,0.00012027,2]
[353149234,1739611886363,-1754.36,0.00012027,2]
[353149235,1739611886372,-743.87,0.00012027,2]
[353149236,1739611886381,-1009.67,0.00012027,2]
[353149237,1739611886390,-2982.91,0.00012027,2]
[353149238,1739611886399,-995.96,0.00012027,2]
[353149239,1739611886408,-1159.35,0.00012027,2]
[353149240,1739611886417,-581.33,0.00012027,2]
[353149241,1739611886426,-779.91,0.00012027,2]
[353149242,1739611886435,-735.73,0.00012027,2]
[353149243,1739611886444,-1222.91,0.00012027,2]
[353149244,1739611886453,-1141.54,0.00012027,2]
[353149245,1739611886462,-657.56,0.00012027,2]
[353149246,1739611886471,-921.4,0.00012027,2]
[353149247,1739611886480,-802.93,0.00012027,2]
[353149248,1739611886490,-560.26,0.00012027,2]
[353149249,1739611886499,-646.72,0.00012027,2]
[353149250,1739611886508,-1756.73,0.00012027,2]
[353149251,1739611886518,-2263.15,0.00012027,2]
[353149252,1739611886527,-630.63,0.00012027,2]
[353149253,1739611886537,-645.55,0.00012027,2]
[353149254,1739611886546,-500.0,0.00012027,2]
[353149255,1739611886555,-904.92,0.00012027,2]
[353149256,1739611886564,-864.22,0.00012027,2]
[353149257,1739611886573,-500.0,0.00012027,2]
[353149258,1739611886582,-830.74,0.00012027,2]
[353149259,1739611886598,-769.25,0.00012027,2]
[353149260,1739611886609,-897.43,0.00012027,2]
[353149261,1739611886618,-1011.81,0.00012027,2]